bitfinex-derivatives/quotes_BTCF0:USTF0_20240923
["timestamp","ask_amount","ask_price","bid_price","bid_amount"]
[1727099975501,0.00237437,63202.0,63201.0,0.079124]
[1727099975683,0.00237437,63202.0,63201.0,0.158248]
[1727099975997,0.006,63202.0,63201.0,0.079124]
[1727099976201,0.006,63202.0,63201.0,0.439924]
[1727099976384,0.01,63202.0,63201.0,0.439924]
[1727099977290,0.006,63202.0,63201.0,0.439924]
[1727099977585,0.006,63202.0,63196.0,0.19]
[1727099977586,0.079115,63208.0,63200.0,0.3608]
[1727099977898,0.079114,63209.0,63207.0,0.079115]
[1727099978194,0.079114,63209.0,63208.0,0.079115]
[1727099978399,0.351209,63214.0,63213.0,0.079109]
[1727099978599,0.3608,63215.0,63205.0,0.3608]
[1727099979102,0.439907,63215.0,63214.0,1.13]
[1727099979501,0.3608,63215.0,63209.0,0.079113]
[1727099979703,0.3608,63215.0,63205.0,0.439919]
[1727099979888,0.3608,63215.0,63205.0,0.3608]
[1727099979889,0.079118,63206.0,63205.0,0.3608]
[1727099980089,0.079118,63206.0,63205.0,1.4908]
[1727099980399,0.0858,63206.0,63205.0,1.4908]
[1727099980590,0.079109,63213.0,63205.0,1.4908]
[1727099980791,0.079111,63212.0,63205.0,1.4908]
[1727099981007,0.079115,63208.0,63207.0,0.079116]
[1727099981202,0.079115,63208.0,63205.0,1.13084]
[1727099981507,0.002,63206.0,63205.0,1.13]
[1727099981687,0.002,63206.0,63205.0,1.569919]
[1727099982006,0.004,63212.0,63211.0,0.079112]
[1727099982502,0.3698,63215.0,63211.0,0.079112]
[1727099982702,0.3698,63215.0,63205.0,1.4908]
[1727099982703,0.439907,63215.0,63212.0,0.07911]
[1727099983203,0.439907,63215.0,63214.0,0.079108]
[1727099983204,0.3608,63215.0,63214.0,0.079108]
[1727099983593,0.439907,63215.0,63214.0,0.079108]
[1727099983901,0.0858,63217.0,63211.0,0.439911]
[1727099984090,0.079109,63213.0,63212.0,0.079109]
[1727099984285,0.079109,63213.0,63212.0,0.080109]
[1727099985396,0.086109,63213.0,63212.0,0.080109]
[1727099986103,0.007,63213.0,63212.0,0.079109]
[1727099986304,0.007,63213.0,63212.0,0.158219]
[1727099986602,0.00237371,63222.0,63221.0,0.079099]
[1727099987907,0.01637371,63222.0,63221.0,0.079099]
[1727099988102,0.10947171,63222.0,63221.0,0.079099]
[1727099988503,0.10947171,63222.0,63221.0,0.1263531]
[1727099988697,0.10947171,63222.0,63221.0,0.079099]
[1727099989099,0.158206,63218.0,63217.0,0.3608]
[1727099989299,0.22037371,63222.0,63216.0,0.07877494]
[1727099989300,0.158208,63217.0,63216.0,0.07877494]
[1727099989502,0.348208,63217.0,63216.0,0.07877494]
[1727099989805,0.079105,63216.0,63207.0,0.08114808]
[1727099990106,0.079115,63208.0,63207.0,0.00237314]
[1727099990292,0.078117,63207.0,63206.0,0.079118]
[1727099990489,0.079114,63210.0,63209.0,0.079114]
[1727099990702,0.2745,63215.0,63205.0,1.4916]
[1727099990703,0.079108,63214.0,63205.0,1.4916]
[1727099990902,0.348236,63206.0,63205.0,0.3608]
[1727099991400,1.26464,63206.0,63204.0,0.04730448]
[1727099991602,0.15824,63204.0,63203.0,0.04730448]
[1727099991803,0.15824,63204.0,63192.0,0.439934]
[1727099991804,0.079123,63202.0,63201.0,0.04731701]
[1727099992102,0.439923,63202.0,63201.0,0.04731701]
[1727099992298,0.079127,63199.0,63196.0,0.07877494]
[1727099992525,0.3608,63202.0,63196.0,0.07877494]
[1727099993005,0.3598,63202.0,63196.0,0.07877494]
[1727099993504,0.078126,63200.0,63196.0,0.07877494]
[1727099994090,0.0857,63201.0,63200.0,0.079125]
[1727099994695,0.002,63200.0,63198.0,0.079128]
[1727099994892,0.079127,63199.0,63198.0,0.079128]
[1727099995204,0.002,63200.0,63198.0,0.079128]
[1727099995403,0.005,63200.0,63199.0,0.079127]
[1727099995900,0.5508,63215.0,63199.0,0.61308014]
[1727099995901,0.079113,63210.0,63199.0,0.61308014]
[1727099996102,0.07911,63212.0,63211.0,0.079111]
[1727099996294,0.07911,63212.0,63211.0,1.209111]
[1727099997000,0.0845,63214.0,63213.0,0.079109]
[1727099997302,0.163597,63223.0,63221.0,0.079098]
[1727099997498,0.079098,63222.0,63221.0,0.079098]
[1727099997901,0.55184001,63230.0,63218.0,0.07884931]
[1727099998108,0.55184001,63230.0,63217.0,0.3608]
[1727099998109,0.079093,63227.0,63225.0,0.079093]
[1727099999008,0.079094,63225.0,63224.0,0.3608]
[1727099999311,0.269094,63225.0,63224.0,0.3608]
[1727099999611,0.269094,63225.0,63224.0,0.04727963]
[1727100000305,0.348188,63225.0,63224.0,0.04727963]
[1727100000507,1.514374,63225.0,63218.0,0.001]
[1727100000806,0.5508,63219.0,63211.0,0.0008]
[1727100001107,0.079109,63213.0,63212.0,1.13]
[1727100001296,0.5508,63219.0,63212.0,1.4908]
[1727100001297,0.0907,63218.0,63212.0,1.4908]
[1727100001609,0.0907,63218.0,63214.0,0.07884931]
[1727100001903,0.0907,63218.0,63212.0,1.13]
[1727100001904,0.079109,63213.0,63212.0,0.00088]
[1727100002107,0.07911,63212.0,63211.0,0.15796031]
[1727100002293,0.0907,63218.0,63213.0,0.079108]
[1727100002496,0.079096,63224.0,63216.0,0.43964931]
[1727100002801,0.027,63225.0,63216.0,0.43964931]
[1727100002802,0.027,63225.0,63224.0,0.079095]
[1727100003208,0.027,63225.0,63218.0,0.001]
[1727100003209,0.5778,63225.0,63218.0,0.001]
[1727100003407,0.5778,63225.0,63218.0,1.131]
[1727100003408,0.19,63219.0,63218.0,1.131]
[1727100003709,0.19,63219.0,63216.0,0.3608]
[1727100003710,0.079103,63218.0,63216.0,0.001]
[1727100003897,0.5618,63219.0,63216.0,0.001]
[1727100003898,0.37284001,63219.0,63216.0,0.001]
[1727100004099,0.3718,63219.0,63216.0,0.001]
[1727100004294,0.079104,63217.0,63216.0,0.001]
[1727100004504,0.079104,63217.0,63216.0,0.080105]
[1727100004505,0.078104,63217.0,63216.0,0.080105]
[1727100004708,0.0791,63221.0,63218.0,0.079102]
[1727100005014,0.011,63219.0,63218.0,0.079102]
[1727100005399,0.011,63219.0,63218.0,0.348205]
[1727100005902,0.011,63219.0,63218.0,0.079102]
[1727100006297,0.011,63219.0,63218.0,0.348205]
[1727100006503,0.022,63219.0,63218.0,0.349205]
[1727100006807,0.3608,63228.0,63227.0,0.079092]
[1727100007205,0.079081,63236.0,63223.0,0.19]
[1727100007410,0.0037,63243.0,63242.0,0.079073]
[1727100007614,0.00116,63242.0,63239.0,0.3608]
[1727100007917,0.19,63255.0,63239.0,0.3608]
[1727100007918,0.079058,63255.0,63252.0,0.07906]
[1727100008214,0.00104001,63256.0,63249.0,0.3608]
[1727100008414,0.3608,63259.0,63249.0,0.3608]
[1727100008802,0.079058,63254.0,63249.0,0.3608]
[1727100009003,0.079054,63257.0,63253.0,0.079058]
[1727100009199,0.079057,63255.0,63249.0,0.5516]
[1727100009410,0.079057,63255.0,63249.0,0.629863]
[1727100009611,0.079057,63255.0,63250.0,0.079062]
[1727100009810,0.3608,63259.0,63249.0,0.3608]
[1727100009811,0.079054,63258.0,63249.0,0.3608]
[1727100010011,0.3608,63259.0,63252.0,0.079059]
[1727100010212,0.014,63242.0,63241.0,0.3608]
[1727100010416,0.013,63242.0,63241.0,0.3608]
[1727100010808,0.19,63248.0,63241.0,0.3608]
[1727100010809,0.078072,63243.0,63241.0,0.3608]
[1727100011010,0.3608,63246.0,63240.0,1.1308]
[1727100011209,0.19,63243.0,63223.0,0.3608]
[1727100011406,0.19,63230.0,63223.0,0.439895]
[1727100011612,0.19,63230.0,63224.0,0.079095]
[1727100011613,0.079091,63228.0,63224.0,0.079095]
[1727100011913,0.079092,63227.0,63223.0,0.3608]
[1727100012210,0.19,63234.0,63223.0,0.439896]
[1727100012405,0.19,63225.0,63219.0,1.13088]
[1727100012612,0.19,63229.0,63214.0,0.3608]
[1727100012911,0.079084,63233.0,63226.0,0.079093]
[1727100013113,0.07908,63236.0,63227.0,0.5508]
[1727100013413,0.3608,63237.0,63227.0,0.5508]
[1727100013615,0.3608,63237.0,63228.0,0.0912]
[1727100013915,0.439879,63237.0,63228.0,0.0912]
[1727100014112,0.3608,63243.0,63236.0,0.5508]
[1727100014315,0.3608,63243.0,63241.0,0.19]
[1727100014626,0.19,63253.0,63241.0,0.079074]
[1727100015303,0.19,63243.0,63235.0,0.07908]
[1727100015615,0.5508,63242.0,63230.0,0.3608]
[1727100015829,0.079085,63232.0,63228.0,0.0912]
[1727100016007,0.079085,63232.0,63214.0,0.18242618]
[1727100016008,0.3608,63235.0,63215.0,0.06309179]
[1727100016209,0.3608,63235.0,63217.0,0.079104]
[1727100016210,0.079097,63223.0,63217.0,0.079104]
[1727100016413,0.0791,63220.0,63217.0,0.079104]
[1727100016603,0.079096,63224.0,63218.0,0.079103]
[1727100016807,0.079096,63224.0,63219.0,0.079101]
[1727100017102,0.5508,63227.0,63215.0,0.0912]
[1727100017103,0.079104,63217.0,63215.0,0.0912]
[1727100017311,0.3608,63218.0,63200.0,0.42389179]
[1727100017513,0.628913,63210.0,63205.0,0.079119]
[1727100017811,0.628913,63210.0,63200.0,0.3608]
[1727100017812,0.438913,63210.0,63206.0,0.079117]
[1727100018014,0.438913,63210.0,63197.0,0.0895]
[1727100018015,0.19,63209.0,63197.0,0.0895]
[1727100018320,0.3598,63210.0,63186.0,0.0895]
[1727100018321,0.3608,63199.0,63186.0,0.0895]
[1727100018519,0.3608,63200.0,63197.0,0.079129]
[1727100018710,0.3578,63200.0,63195.0,0.3608]
[1727100019015,0.3578,63200.0,63186.0,0.0895]
[1727100019016,0.3608,63196.0,63186.0,0.0895]
[1727100019222,0.26914,63188.0,63187.0,0.0008]
[1727100019518,0.3608,63189.0,63170.0,0.3608]
[1727100019519,0.067461,63172.0,63170.0,0.3608]
[1727100020009,0.3608,63175.0,63170.0,0.3608]
[1727100020203,0.3558,63175.0,63170.0,0.3608]
[1727100021105,0.4495,63187.0,63170.0,0.3658]
[1727100021304,0.4495,63187.0,63176.0,0.3]
[1727100021305,0.3608,63187.0,63176.0,0.3]
[1727100021518,0.3608,63187.0,63179.0,0.3608]
[1727100021718,0.3608,63187.0,63170.0,0.3658]
[1727100021719,0.3608,63187.0,63171.0,0.3]
[1727100022222,0.3608,63187.0,63177.0,0.3608]
[1727100022407,0.3608,63187.0,63177.0,0.439954]
[1727100022705,0.3638,63187.0,63177.0,0.439954]
[1727100022902,0.3638,63187.0,63178.0,0.079152]
[1727100023106,0.3608,63187.0,63178.0,0.079152]
[1727100023710,0.3608,63187.0,63181.0,0.079149]
[1727100023909,0.3608,63193.0,63183.0,0.3608]
[1727100024217,0.3608,63193.0,63188.0,0.3]
[1727100024415,0.00237456,63201.0,63192.0,0.3608]
[1727100024714,0.079111,63212.0,63194.0,0.3]
[1727100024916,0.739903,63218.0,63200.0,0.3]
[1727100025112,0.079104,63217.0,63206.0,0.079117]
[1727100025315,0.6608,63218.0,63201.0,1.13]
[1727100025316,0.3608,63209.0,63201.0,1.209923]
[1727100025617,0.3608,63209.0,63201.0,1.13]
[1727100025820,0.26041377,63207.0,63201.0,1.13]
[1727100026022,0.079122,63203.0,63201.0,1.13]
[1727100026221,0.26041377,63207.0,63201.0,1.13]
[1727100026520,0.079122,63203.0,63201.0,1.13]
[1727100026719,0.3608,63204.0,63201.0,1.13]
[1727100026912,0.3608,63204.0,63202.0,0.079122]
[1727100027113,0.31329601,63204.0,63202.0,0.079122]
[1727100027707,0.009,63203.0,63202.0,0.079122]
[1727100028209,0.009,63203.0,63201.0,1.1328]
[1727100028411,0.009,63203.0,63201.0,1.132]
[1727100028619,0.009,63203.0,63202.0,0.080123]
[1727100029208,0.007,63204.0,63203.0,0.079122]
[1727100029606,0.3608,63217.0,63202.0,0.001]
[1727100029827,0.3608,63217.0,63207.0,0.3608]
[1727100030007,0.3608,63217.0,63212.0,0.079109]
[1727100030225,0.3608,63217.0,63207.0,0.3608]
[1727100030226,0.3608,63217.0,63208.0,0.079115]
[1727100030526,0.3608,63217.0,63207.0,0.3608]
[1727100030527,0.079109,63213.0,63206.0,0.079118]
[1727100030910,0.3608,63217.0,63201.0,1.1308]
[1727100030911,0.3,63208.0,63201.0,1.1308]
[1727100031112,0.3,63202.0,63189.0,0.06309179]
[1727100031323,0.3608,63194.0,63186.0,0.079143]
[1727100031519,0.3598,63194.0,63187.0,1.13]
[1727100031723,0.079139,63189.0,63187.0,1.13]
[1727100031916,0.3608,63195.0,63187.0,1.13]
[1727100032122,0.3608,63195.0,63179.0,0.3631741]
[1727100032318,0.079137,63192.0,63179.0,0.3631741]
[1727100032522,0.079137,63192.0,63180.0,1.13]
[1727100032822,0.3608,63195.0,63180.0,1.13]
[1727100033018,0.3608,63195.0,63179.0,0.3631741]
[1727100033019,0.004,63189.0,63179.0,0.3631741]
[1727100033219,0.3608,63188.0,63179.0,0.3631741]
[1727100033714,0.004,63189.0,63179.0,0.3631741]
[1727100033916,0.004,63189.0,63188.0,0.07914]
[1727100034627,0.079129,63197.0,63191.0,0.079136]
[1727100034821,0.00237457,63202.0,63193.0,0.3608]
[1727100035028,0.00237457,63202.0,63201.0,0.079124]
[1727100035830,0.00237457,63202.0,63201.0,1.209124]
[1727100036217,0.00237457,63202.0,63201.0,1.569924]
[1727100036421,0.00237457,63202.0,63201.0,2.644604]
[1727100036824,1e-08,63202.0,63201.0,2.723728]
[1727100037128,0.3,63221.0,63201.0,2.723728]
[1727100037129,0.079107,63215.0,63201.0,2.644604]
[1727100037315,0.001,63202.0,63201.0,1.650048]
[1727100037630,0.001,63202.0,63201.0,2.250048]
[1727100037631,0.008,63202.0,63201.0,2.250048]
[1727100037925,0.008,63202.0,63201.0,2.724728]
[1727100038333,0.008,63202.0,63201.0,2.725728]
[1727100038334,0.001,63202.0,63201.0,2.725728]
[1727100038520,0.079109,63213.0,63201.0,2.646604]
[1727100038721,0.079111,63212.0,63201.0,1.4928]
[1727100038928,0.079122,63204.0,63203.0,0.079122]
[1727100039139,0.079115,63208.0,63205.0,0.079119]
[1727100039337,0.079115,63208.0,63201.0,1.1328]
[1727100039338,0.00128,63209.0,63201.0,1.1328]
[1727100039636,0.079117,63207.0,63206.0,0.079117]
[1727100040032,0.3608,63208.0,63207.0,0.079117]
[1727100040532,0.3608,63208.0,63201.0,1.132]
[1727100040533,0.079109,63213.0,63201.0,1.132]
[1727100041036,0.079109,63213.0,63202.0,0.079123]
[1727100041237,0.008,63204.0,63203.0,0.080122]
[1727100041628,0.079109,63213.0,63202.0,0.079123]
[1727100041629,0.07911,63212.0,63211.0,0.079112]
[1727100042926,0.079105,63216.0,63215.0,0.079106]
[1727100043636,0.4468,63222.0,63205.0,0.3608]
[1727100043637,0.0791,63220.0,63219.0,0.0791]
[1727100043834,0.4468,63222.0,63211.0,0.3608]
[1727100044038,0.3608,63222.0,63212.0,0.07911]
[1727100044428,0.3608,63222.0,63215.0,0.001]
[1727100044633,0.079102,63220.0,63215.0,0.001]
[1727100044832,0.007,63216.0,63215.0,0.002]
[1727100045127,0.007,63216.0,63215.0,0.081107]
[1727100045331,0.3608,63222.0,63214.0,0.079107]
[1727100045332,0.007,63222.0,63214.0,0.079107]
[1727100045525,0.007,63222.0,63221.0,0.079099]
[1727100045938,0.00237379,63223.0,63222.0,0.079098]
[1727100046643,0.00237379,63223.0,63222.0,1.209098]
[1727100047444,0.00237379,63223.0,63222.0,2.283618]
[1727100048127,0.00237379,63223.0,63222.0,2.362716]
[1727100048332,0.00237379,63223.0,63222.0,2.283618]
[1727100048540,0.00237379,63223.0,63222.0,2.284618]
[1727100048842,0.3608,63245.0,63222.0,2.50652]
[1727100049042,0.3608,63245.0,63235.0,0.3608]
[1727100049256,0.07907,63245.0,63244.0,0.079068]
[1727100049739,0.0895,63247.0,63246.0,0.079068]
[1727100049939,0.00237272,63252.0,63251.0,0.079061]
[1727100050139,0.0037,63257.0,63256.0,0.079055]
[1727100050447,0.17290876,63264.0,63251.0,1.01244]
[1727100050638,0.17290876,63264.0,63261.0,0.3608]
[1727100050845,0.17290876,63264.0,63262.0,1.13]
[1727100050846,0.079047,63263.0,63262.0,1.13]
[1727100051237,0.09386376,63264.0,63262.0,1.13]
[1727100051548,0.09386376,63264.0,63262.0,1.209047]
[1727100052040,0.439847,63263.0,63262.0,1.13]
[1727100052234,0.079047,63263.0,63262.0,1.13]
[1727100052429,0.079047,63263.0,63262.0,1.131]
[1727100053243,0.079052,63259.0,63253.0,0.079058]
[1727100053439,0.079055,63257.0,63253.0,0.079058]
[1727100053741,0.079056,63256.0,63254.0,1.13]
[1727100053951,0.3608,63265.0,63254.0,1.13]
[1727100054544,0.002,63263.0,63262.0,0.001]
[1727100054748,0.381047,63263.0,63262.0,0.001]
[1727100054941,0.081047,63263.0,63262.0,0.001]
[1727100055635,0.081047,63263.0,63254.0,1.132]
[1727100055636,0.3,63263.0,63254.0,1.132]
[1727100055833,0.079053,63258.0,63254.0,1.132]
[1727100056246,0.0941584,63255.0,63254.0,1.210058]
[1727100057347,0.1732144,63255.0,63254.0,1.13]
[1727100057545,0.1732144,63255.0,63251.0,0.3608]
[1727100057944,0.1732144,63255.0,63254.0,0.001]
[1727100058344,0.1732144,63255.0,63254.0,0.002]
[1727100059652,0.1732144,63255.0,63254.0,0.081058]
[1727100059855,0.0941584,63255.0,63254.0,0.081058]
[1727100061052,0.0941584,63255.0,63254.0,0.160116]
[1727100061254,0.079044,63265.0,63264.0,0.079045]
[1727100062157,0.079049,63261.0,63260.0,0.3608]
[1727100062355,0.079049,63261.0,63254.0,0.002]
[1727100062356,0.079053,63259.0,63258.0,0.079052]
[1727100062853,0.079048,63263.0,63254.0,0.001]
[1727100063055,0.079048,63263.0,63262.0,0.079047]
[1727100063755,0.079052,63259.0,63258.0,0.079052]
[1727100064462,0.3608,63264.0,63263.0,0.079047]
[1727100064646,0.439845,63264.0,63263.0,0.079047]
[1727100065354,0.3608,63264.0,63263.0,0.079047]
[1727100065563,0.079042,63267.0,63266.0,0.079043]
[1727100065757,0.36208,63274.0,63265.0,0.3608]
[1727100065954,0.36208,63274.0,63273.0,0.708868]
[1727100065955,0.00128,63274.0,63273.0,0.708868]
[1727100066155,0.0888,63285.0,63273.0,0.3608]
[1727100066156,0.079025,63281.0,63273.0,0.3608]
[1727100066454,0.0888,63285.0,63273.0,0.3608]
[1727100066660,0.3608,63301.0,63283.0,0.19]
[1727100066848,0.079008,63294.0,63288.0,0.629814]
[1727100067047,0.079002,63299.0,63288.0,0.5508]
[1727100067248,0.3608,63301.0,63291.0,0.079011]
[1727100067457,0.3608,63301.0,63293.0,0.19]
[1727100067961,0.4398,63301.0,63293.0,0.079008]
[1727100068151,0.002,63294.0,63293.0,0.079008]
[1727100068351,0.002,63294.0,63288.0,0.5518]
[1727100068352,0.002,63294.0,63288.0,0.441815]
[1727100068559,0.002,63294.0,63288.0,0.3628]
[1727100068757,0.19,63293.0,63288.0,0.001]
[1727100069060,0.079013,63290.0,63280.0,0.19]
[1727100069357,0.0889,63292.0,63285.0,0.5508]
[1727100069555,0.079007,63295.0,63285.0,0.5508]
[1727100069957,0.079013,63290.0,63285.0,0.5508]
[1727100070151,0.079015,63289.0,63285.0,0.3608]
[1727100070354,0.079008,63294.0,63279.0,0.079026]
[1727100070666,0.079008,63294.0,63275.0,0.19]
[1727100070667,0.5508,63290.0,63275.0,0.19]
[1727100070962,0.3608,63290.0,63275.0,0.19]
[1727100071157,0.079015,63289.0,63288.0,0.001]
[1727100071751,0.079016,63288.0,63285.0,0.001]
[1727100071953,0.3628,63290.0,63280.0,0.079025]
[1727100072153,0.079018,63286.0,63283.0,0.3608]
[1727100072355,0.002,63289.0,63288.0,0.001]
[1727100073075,0.3638,63290.0,63280.0,0.3618]
[1727100073255,0.079023,63282.0,63280.0,0.3618]
[1727100073562,0.079024,63281.0,63280.0,0.001]
[1727100073757,0.158048,63281.0,63280.0,0.001]
[1727100073961,0.079034,63273.0,63272.0,0.00237063]
[1727100074356,0.079034,63273.0,63272.0,1.13237063]
[1727100074661,0.079034,63273.0,63272.0,0.00237063]
[1727100074863,0.078034,63273.0,63272.0,0.00237063]
[1727100075164,0.078034,63273.0,63272.0,1.13237063]
[1727100075462,0.080034,63273.0,63272.0,1.13337063]
[1727100077473,0.3608,63282.0,63272.0,2.20849063]
[1727100077759,0.1064584,63297.0,63272.0,2.20849063]
[1727100077760,0.0037,63292.0,63281.0,0.5508]
[1727100077961,0.0941584,63293.0,63287.0,0.439815]
[1727100078352,0.0941584,63294.0,63287.0,0.439815]
[1727100078561,0.079018,63287.0,63283.0,0.079021]
[1727100078765,0.0941584,63293.0,63286.0,0.079017]
[1727100078962,0.003,63292.0,63286.0,0.079017]
[1727100079263,0.0941584,63291.0,63287.0,0.001]
[1727100079462,0.003,63292.0,63287.0,0.3618]
[1727100079463,0.082011,63292.0,63287.0,0.3618]
[1727100079669,0.079011,63292.0,63287.0,0.3628]
[1727100080069,0.003,63293.0,63288.0,0.19]
[1727100080259,0.00140001,63299.0,63298.0,0.079003]
[1727100080564,0.0023708,63306.0,63304.0,0.078994]
[1727100080765,0.0023708,63306.0,63305.0,0.439794]
[1727100081567,0.0037,63321.0,63320.0,0.078975]
[1727100081759,0.0037,63336.0,63320.0,1.5116]
[1727100081952,0.12554454,63339.0,63333.0,0.19]
[1727100081953,0.031447,63335.0,63333.0,0.19]
[1727100082159,0.031447,63335.0,63329.0,0.3608]
[1727100082160,0.078953,63339.0,63329.0,0.7216]
[1727100082364,0.1722,63346.0,63329.0,0.7216]
[1727100082565,0.078954,63338.0,63329.0,0.7216]
[1727100082867,0.10985147,63346.0,63333.0,0.19]
[1727100083064,0.31924454,63350.0,63337.0,0.5508]
[1727100083065,0.0037,63350.0,63337.0,0.5508]
[1727100083369,0.49864454,63359.0,63348.0,0.3571]
[1727100083370,0.3608,63359.0,63348.0,0.3571]
[1727100083559,0.3608,63359.0,63346.0,0.19]
[1727100083754,0.19,63348.0,63333.0,0.001]
[1727100083956,0.3608,63349.0,63333.0,0.001]
[1727100083957,0.5508,63342.0,63333.0,0.001]
[1727100084255,0.078957,63335.0,63333.0,0.001]
[1727100085057,0.078963,63330.0,63329.0,0.001]
[1727100085263,0.078963,63330.0,63322.0,0.3608]
[1727100085264,0.19,63330.0,63322.0,0.3608]
[1727100085860,0.078971,63324.0,63322.0,0.3608]
[1727100086767,0.078966,63328.0,63323.0,0.19]
[1727100086969,0.0858,63329.0,63322.0,0.3618]
[1727100087166,0.078971,63324.0,63322.0,0.001]
[1727100087467,0.3608,63326.0,63322.0,0.191]
[1727100087659,0.078969,63325.0,63322.0,0.191]
[1727100088060,0.078969,63325.0,63322.0,0.002]
[1727100088260,0.078971,63324.0,63322.0,0.002]
[1727100089579,0.552732,63323.0,63322.0,0.002]
[1727100090084,1.152732,63323.0,63322.0,0.002]
[1727100090263,0.552732,63323.0,63322.0,0.002]
[1727100090658,0.078972,63323.0,63322.0,0.002]
[1727100090859,0.078972,63323.0,63322.0,0.001]
[1727100091062,0.078972,63323.0,63322.0,0.002]
[1727100091277,0.0858,63329.0,63322.0,0.002]
[1727100091278,0.078965,63328.0,63322.0,0.002]
[1727100091462,0.078965,63328.0,63324.0,0.19]
[1727100091661,0.0886,63335.0,63324.0,0.19]
[1727100091662,0.078968,63326.0,63324.0,0.19]
[1727100091873,0.1822,63335.0,63324.0,0.19]
[1727100092062,0.078963,63330.0,63324.0,0.19]
[1727100092265,0.078964,63329.0,63326.0,0.3608]
[1727100092571,0.078958,63334.0,63326.0,0.3608]
[1727100092769,0.078946,63344.0,63328.0,0.078965]
[1727100092770,0.3608,63338.0,63328.0,0.078965]
[1727100093073,0.07896,63333.0,63329.0,0.078964]
[1727100094077,0.3608,63337.0,63326.0,0.55164]
[1727100094271,0.3608,63337.0,63326.0,0.3608]
[1727100094478,0.3608,63337.0,63327.0,0.078967]
[1727100094771,0.157938,63325.0,63324.0,0.001]
[1727100095175,0.157938,63325.0,63313.0,0.3608]
[1727100095176,0.078978,63318.0,63313.0,0.3608]
[1727100095365,0.078979,63317.0,63314.0,0.078982]
[1727100095566,0.078979,63317.0,63313.0,0.3608]
[1727100095779,0.36208,63328.0,63319.0,0.078976]
[1727100095780,0.078972,63323.0,63319.0,0.078976]
[1727100095974,0.439767,63328.0,63313.0,0.3608]
[1727100096275,0.19,63324.0,63313.0,0.3608]
[1727100096574,0.002,63317.0,63313.0,0.3608]
[1727100096783,0.08098,63317.0,63315.0,0.078981]
[1727100097274,0.078974,63321.0,63313.0,0.3608]
[1727100097672,0.19,63324.0,63313.0,0.3608]
[1727100097869,0.19,63324.0,63314.0,0.078983]
[1727100098066,0.004,63317.0,63314.0,0.078983]
[1727100098874,0.078983,63314.0,63313.0,0.3608]
[1727100099074,0.078983,63314.0,63313.0,0.439784]
[1727100099279,0.2805,63324.0,63313.0,0.439784]
[1727100099280,0.002,63317.0,63313.0,0.3608]
[1727100099485,0.002,63317.0,63316.0,0.07898]
[1727100099877,0.078972,63323.0,63313.0,0.3608]
[1727100100168,0.008,63314.0,63313.0,0.440784]
[1727100100373,0.078974,63321.0,63313.0,0.3618]
[1727100100584,0.078975,63320.0,63317.0,0.078978]
[1727100101082,0.078975,63320.0,63318.0,0.078978]
[1727100101287,0.005,63317.0,63314.0,0.001]
[1727100101489,0.005,63317.0,63307.0,0.3608]
[1727100101490,0.07899,63308.0,63307.0,0.0008]
[1727100101782,0.077994,63305.0,63304.0,1.1308]
[1727100101972,0.078987,63311.0,63307.0,0.078992]
[1727100102168,0.078987,63311.0,63304.0,1.209874]
[1727100102373,0.07899,63309.0,63304.0,1.13]
[1727100102577,0.19,63313.0,63307.0,0.078991]
[1727100102883,0.19,63313.0,63304.0,1.13284]
[1727100102884,0.078985,63312.0,63304.0,1.13284]
[1727100103176,0.078993,63307.0,63306.0,0.078993]
[1727100104680,0.078994,63305.0,63304.0,1.13292]
[1727100104883,0.078994,63305.0,63304.0,1.132]
[1727100105185,0.078994,63305.0,63304.0,1.208995]
[1727100105186,0.077994,63305.0,63304.0,1.208995]
[1727100105671,0.077994,63305.0,63304.0,1.13]
[1727100105867,0.083994,63305.0,63304.0,1.13]
[1727100106070,0.167988,63305.0,63304.0,1.13]
[1727100106681,0.164988,63305.0,63304.0,1.13]
[1727100107687,0.166988,63305.0,63304.0,1.131]
[1727100108281,0.163988,63305.0,63304.0,1.131]
[1727100108581,0.166988,63305.0,63304.0,1.131]
[1727100108786,0.173988,63305.0,63304.0,1.132]
[1727100109081,0.078998,63302.0,63301.0,0.00236962]
[1727100109284,0.268998,63302.0,63301.0,0.00236962]
[1727100109485,0.347996,63302.0,63301.0,0.00236962]
[1727100109781,0.078998,63302.0,63301.0,1.13236962]
[1727100109972,0.157996,63302.0,63301.0,1.13236962]
[1727100110384,0.157996,63302.0,63278.0,0.3608]
[1727100110385,0.079012,63291.0,63278.0,0.3608]
[1727100110591,0.19,63284.0,63278.0,0.3608]
[1727100110881,0.078027,63279.0,63278.0,0.3608]
[1727100111478,0.19,63284.0,63273.0,0.0935]
[1727100111479,0.19,63284.0,63275.0,0.07903]
[1727100111785,0.079023,63282.0,63276.0,0.079029]
[1727100111983,0.079023,63282.0,63278.0,1.13]
[1727100112179,0.079023,63282.0,63278.0,1.135]
[1727100112387,0.079023,63282.0,63278.0,1.221027]
[1727100112609,0.001,63284.0,63281.0,0.19]
[1727100112782,0.001,63284.0,63280.0,0.3608]
[1727100113085,0.001,63284.0,63281.0,0.079024]
[1727100113882,0.079022,63283.0,63280.0,0.3608]